Cogmind - Beta 9.3 @@@ ROGUE MODE // 2019.12.30 @ 22:09:27 Player: mrbill82 Result: Destroyed by G-47 Trooper with Particle Gun Performance ------------- Evolutions (0) 0 Regions Visited (1) 200 Robots Destroyed (17) 85 Value Destroyed (460) 460 Prototype IDs (0) 0 Alien Tech Used (0) 0 Bonus (0) 0 TOTAL SCORE: 745 Bonus ------- None Cogmind --------- Core Integrity 0/250 Matter 300/300 Energy 100/100 System Corruption 0% Temperature Cool (9) Movement Core (100) Ox1 Location -10/Materials Parts ------- > --- POWER (1) -------- (None) > --- PROPULSION (2) --- (None) > --- UTILITY (2) ------ Small Storage Unit > --- WEAPON (2) ------- (None) > --- INVENTORY (6) ---- Ion Engine Aluminum Leg Medium Laser Beam Cannon Assault Rifle Grenade Launcher Peak State ------------ > --- POWER ------------ Ion Engine > --- PROPULSION ------- Aluminum Leg Aluminum Leg > --- UTILITY ---------- Heat Sink Small Storage Unit > --- WEAPON ----------- Assault Rifle Assault Rifle > --- INVENTORY -------- Ion Engine Aluminum Leg Sensor Array Medium Laser Beam Cannon Grenade Launcher [Rating: 7] Favorites ----------- Power Ion Engine Engine Ion Engine Propulsion Aluminum Leg Leg Aluminum Leg Utility Small Storage Unit Device Sensor Array Storage Small Storage Unit Processor Targeting Computer Weapon Assault Rifle Ballistic Gun Assault Rifle Build | -11 -10 ------- Run | Scr Mat Slots Evolved . | . . Power . | . . Propulsion . | . . Utility . | . . Weapon . | . . Parts Attached 15 | 7 8 Power 3 | 2 1 Engine 3 | 2 1 Core . | . . Reactor . | . . Propulsion 3 | 2 1 Treads . | . . Leg 3 | 2 1 Wheel . | . . Hover . | . . Flight . | . . Utility 4 | 1 3 Device 2 | . 2 Storage 1 | 1 . Processor 1 | . 1 Hackware . | . . Protection . | . . Artifact . | . . Weapon 5 | 2 3 Energy Gun . | . . Energy Cannon . | . . Ballistic Gun 5 | 2 3 Ballistic Cannon . | . . Launcher . | . . Special Weapon . | . . Impact Weapon . | . . Slashing Weapon . | . . Piercing Weapon . | . . Special Melee Weapon . | . . Unidentified Prototypes . | . . Parts Lost 7 | . 7 Power 2 | . 2 Propulsion 2 | . 2 Utility 1 | . 1 Weapon 2 | . 2 Highest Loss Streak 6 | . 6 Average Slot Usage (%) 87 | . 87 Engine 12 | . 12 Leg 26 | . 26 Device 6 | . 6 Storage 14 | . 14 Processor 1 | . 1 Ballistic Gun 25 | . 25 Naked Turns . | . . Heaviest Build 14 | 13 14 Greatest Support 20 | 20 20 Greatest Overweight (x) 1 | . 1 Average Overweight (x) . | . . Largest Inventory Capacity 6 | 6 6 Average Capacity 5 | 5 6 Most Carried 6 | 3 6 Average Carried 4 | 1 5 Final Capacity 6 | 6 6 Final Carried 6 | 2 6 Class Distribution -------------------- 100% | Mutant Dominant Class ---------------- Mutant | -10/Materials Resources | -11 -10 ----------- Run | Scr Mat Matter Collected 612 | 193 419 Remotely . | . . Salvage Created 568 | . 568 Parts 34 | . 34 Haulers Intercepted . | . . Recyclers Shooed 1 | . 1 Parts Field Recycled . | . . Retrieved Matter . | . . Parts Self-Destructed . | . . Prevented . | . . Kills | -11 -10 ------- Run | Scr Mat Combat Hostiles Destroyed 14 | . 14 Guns 14 | . 14 Classes Destroyed 4 | . 4 Worker 1 | . 1 Watcher 2 | . 2 Swarmer 3 | . 3 Grunt 11 | . 11 Best Kill Streak 5 | . 5 Combat Bots Only 4 | . 4 Max Kills in Single Turn 1 | . 1 Gunslinging . | . . Exploded . | . . Melee . | . . Uniques/NPCs Destroyed . | . . Combat | -11 -10 -------- Run | Scr Mat Damage Taken 1004 | . 1004 Core 252 | . 252 Absorbed by Shields . | . . Core Remaining (%) 100 | 100 . Volleys Fired 83 | . 83 Largest 2 | . 2 Hottest 40 | . 40 Shots Fired 126 | . 126 Gun 126 | . 126 Cannon . | . . Launcher . | . . Special . | . . Kinetic 126 | . 126 Thermal . | . . Explosive . | . . Electromagnetic . | . . Robot Hit Streak 9 | . 9 Robot Miss Streak 5 | . 5 Penetration Max . | . . Secondary Targets 4 | . 4 Max Gunslinging Chain 1 | . 1 Shots Hit Robots 78 | . 78 Core Hits 36 | . 36 Critical Hits . | . . Critical Kills . | . . Critical Parts Destroyed . | . . Melee Attacks . | . . Impact . | . . Slashing . | . . Piercing . | . . Sneak Attacks . | . . Combat Hostiles . | . . Follow-up Attacks . | . . Damage Inflicted 869 | . 869 Guns 864 | . 864 Cannons . | . . Explosions . | . . Melee . | . . Ramming 5 | . 5 Kinetic 864 | . 864 Thermal . | . . Explosive . | . . Electromagnetic . | . . Impact . | . . Slashing . | . . Piercing . | . . Highest Corruption . | . . Average Corruption . | . . Corruption Purged . | . . Overload Shots . | . . Overflow Damage . | . . Projectiles . | . . Explosions . | . . Melee . | . . Knockbacks . | . . Impact . | . . Kinetic . | . . Secondary . | . . Self-Inflicted Damage 2 | . 2 Shots . | . . Rammed 1 | . 1 Targets Rammed 1 | . 1 Kicked . | . . Crushed . | . . Highest Temperature 24 | . 24 Average Temperature 8 | . 8 Received Heat Transfer 435 | . 435 Siege Activations . | . . Robots Corrupted . | . . Combat Hostiles . | . . Parts Fried . | . . Impact Corruptions . | . . Robots Melted . | . . Combat Hostiles . | . . Parts Melted . | . . Heat Transferred . | . . Parts Sabotaged . | . . Parts Stolen . | . . Parts Stripped . | . . Power Chain Reactions . | . . Missiles Intercepted . | . . Alert | -11 -10 ------- Run | Scr Mat Peak Influence 309 | . 309 Average Influence 121 | . 132 Maximum Alert Level 1 | . 1 Low Security (%) 88 | 100 87 Level 1 11 | . 12 Level 2 . | . . Level 3 . | . . Level 4 . | . . Level 5 . | . . High Security . | . . Max Security . | . . Squads Dispatched 5 | . 5 Investigation 1 | . 1 Extermination . | . . Reinforcement 4 | . 4 Assault . | . . Garrison . | . . Intercept . | . . Construction Impeded . | . . Haulers Reinforced . | . . Stealth | -11 -10 --------- Run | Scr Mat Distress Signals 1 | . 1 Communications Jammed . | . . Distress Signals . | . . Times Spotted 29 | . 29 Peak Tracking Total 7 | . 7 Tactical Retreats 3 | . 3 Traps | -11 -10 ------- Run | Scr Mat Traps Triggered 1 | . 1 Indirectly . | . . Trap Hack Attempts . | . . Triggered . | . . Disarmed . | . . Reprogrammed . | . . Reused . | . . Traps Extracted . | . . Installed . | . . Triggered . | . . Machines | -11 -10 ---------- Run | Scr Mat Machines Disabled 1 | . 1 Max in Single Turn 1 | . 1 Machines Sabotaged . | . . Garrisons Compromised . | . . Overloaded Fab Kills . | . . Fab Network Shutdowns . | . . Hacking | -11 -10 --------- Run | Scr Mat Machines Accessed 1 | . 1 Terminals . | . . Fabricators . | . . Repair Stations . | . . Recycling Units 1 | . 1 Scanalyzers . | . . Garrison Access . | . . Total Hacks 1 | . 1 Successful 1 | . 1 Failed . | . . Catastrophic . | . . Database Lockouts . | . . Manual . | . . Terminals . | . . Fabricators . | . . Repair Stations . | . . Recycling Units 1 | . 1 Scanalyzers . | . . Garrison Access . | . . Terminal Hacks . | . . Fabricator Hacks . | . . Repair Station Hacks . | . . Recycling Unit Hacks 1 | . 1 Report Inventory 1 | . 1 Scanalyzer . | . . Garrison Access Hacks . | . . Unauthorized Hacks . | . . Terminals . | . . Fabricators . | . . Repair Stations . | . . Recycling Units . | . . Scanalyzers . | . . Garrison Access . | . . Data Cores Recovered . | . . Used . | . . Hacking Detections . | . . Full Trace Events . | . . Feedback Events . | . . Feedback Blocked . | . . Robot Schematics Acquired . | . . Robots Built . | . . Matter . | . . Time . | . . Total Robot Build Rating . | . . Part Schematics Acquired . | . . Parts Built . | . . Matter . | . . Time . | . . Total Part Build Rating . | . . Parts Repaired . | . . Time . | . . Parts Recycled . | . . Recycled Matter . | . . Retrieved Matter . | . . Retrieved Components . | . . Parts Scanalyzed . | . . Part Schematics Acquired . | . . Parts Damaged . | . . Bothacking | -11 -10 ------------ Run | Scr Mat Used RIF Installer . | . . Robots Hacked . | . . Non-combat . | . . Combat . | . . Robot Hacks Applied . | . . Relay Couplers Released . | . . Robots Rewired . | . . Allies Hacked . | . . Hacks Repelled . | . . Allies | -11 -10 -------- Run | Scr Mat Total Allies . | . . Largest Group . | . . Highest-Rated Group . | . . Highest-Rated Ally . | . . Total Orders . | . . Ally Attacks . | . . Total Damage . | . . Kills . | . . Allies Corrupted . | . . Allies Melted . | . . Intel | -11 -10 ------- Run | Scr Mat Robot Analysis Total . | . . Derelict Logs Recovered . | . . Drone Launches . | . . Drone Recoveries . | . . Exploration | -11 -10 ------------- Run | Scr Mat Turns Passed 857 | 68 789 Spaces Moved 528 | 49 479 Core 43 | 5 38 Treads . | . . Legs 485 | 44 441 Wheels . | . . Hover . | . . Flight . | . . Fastest Speed 50 | 50 100 Average Speed 117 | 112 118 Slowest Speed 120 | 120 120 Overloaded Moves . | . . Propulsion Burnouts . | . . Robots Hopped . | . . Cave-ins Triggered . | . . Exploration Rate (%) 37 | 4 71 Regions Visited 1 Branch Regions . Pre-discovered Areas . | . . Known Exits Taken . | . . Unknown Exits Taken 1 | 1 . Scrap Searched . | . . Spaces Dug . | . . Terrain Destroyed . | . . Melee . | . . Projectile . | . . AOE . | . . Actions | -11 -10 --------- Run | Scr Mat Total 644 | 60 584 Wait . | . . Move 527 | 48 479 Hop . | . . Pick Up 9 | 4 5 Fast Attach 11 | 4 7 Attach 3 | 3 . Detach 3 | 1 2 Swap 1 | . 1 Drop 6 | . 6 Fire 83 | . 83 Melee . | . . Ram 1 | . 1 Kick . | . . Crush . | . . Escape Stasis . | . . Rewire . | . . Trap . | . . Miscellaneous . | . . Route ------- -11/Scrapyard -10/Materials (discovered 4 exits: [*Mat x2] / [*Min x2]) History --------- Turn | Location | Event 28 | -11/Scrapyard | Discovered new exit (range 16) 69 | -11/Scrapyard | Entered Materials 168 | -10/Materials | Discovered new exit (range 7) 306 | -10/Materials | Build established: Mutant 359 | -10/Materials | Discovered new exit (range 12) 528 | -10/Materials | Discovered new exit (range 16) 636 | -10/Materials | Discovered new exit (range 4) 756 | -10/Materials | Core integrity fell below 50% 839 | -10/Materials | Core integrity fell below 20% 858 | -10/Materials | Destroyed by G-47 Trooper with Particle Gun Last Messages --------------- Acquired 20 matter. Acquired 6 matter. Acquired Lgt. Ion Engine. Sensor Array destroyed. Acquired 10 matter. Acquired Lgt. Assault Rifle. Acquired 10 matter. G-47 Trooper destroyed. Switching to secondary target: G-34 Mercenary. Acquired 6 matter. Lgt. Assault Rifle destroyed. G-34 Mercenary destroyed. Aluminum Leg destroyed. R-06 Scavenger collects Flight Unit. K-01 Serf collects debris. Aluminum Leg destroyed. Lgt. Ion Engine destroyed. Lgt. Assault Rifle destroyed. Slammed into T-07 Excavator. K-01 Serf cleans the Processing Tank. Map ----- +----------------------------------------------------+ | ?????????# ##### T #???????????? | | ?????????+ "" +???????????? | | ?????????# ##### #???????????? | | ?????????? ###############???# #???????????? | | ???????????????????????????????### ###???????????? | | ???????????????###########???????# #?????????????? | | ???????????????# #???????# #?????????????? | | ???????????????# #########+######????????? | | ???????????????# # + #????????? | | ???????????????# ######### ! #????????? | | ???????????????# #???????# #????????? | | ???????????????# #???????# #??####### | | ???????????????# #???????# #??# | | ???????????????# ######### #??# """ | | ???????????????########+## ##+######## """ | | ?????????????######## """ # "" | | ?????????? # # < "Y" + """ | | ????????? # !# # """ | | ?????????" # # ##" "## # | | ????????"" # """ # ##" !"| "## # | | ????????"" # """ + ##"""""""## ####### | | ????????? # """ # ########### |!! % | | ????????? ######## ## # |!! %% | | ????????? ####### # """ # !! | | ?????????# # # # """ #! ######## | | ?????????# # """ + < @ """ = # #??????? | | ?????????# # """ # # """ + !!!####???? | | ??#??????# # """ # # k""" # !!!"""#???? | | ??? #### # ####### # !!! T"#???? | | ??????+ # ! ##] # = # """#???? | | ?????????# =#*% ## # g # ####???? | | ?????????# %+==!! ## "" ####g##### ######## | | ?????????# =#% !! ## T" + % # | | ?????????# # ! ## "" ##########+#+# # "" "" | | ????????## ######## #??# # # "T "" | | ??####### ##########+#### # # "" "" | | # """ """ # # | | T + """ """ # # | | # """ """ # + | | ####### #### ###/#### # # | | ????????#######??# # #?########## ######## | | ?????????????????# # #?????????## ##?????? | | ?????????????????# # """ #?????????# ####### | | ?????????????????# # """ #?????????# | | ?????????????????# " """ #?????????# | | ?????????????????# # #?????????# | | ?????????????????##### #?????????# ###+### | | ?????????????????????#######?????????####### | | ???????????????????????????????????????????# | | ???????????????????????????????????????????# """ | +----------------------------------------------------+ Best States ------------- Heat Dissipation 35 Energy Generation 10 Energy Capacity 250 Matter Stores 300 Matter Capacity 300 Sight Range 16 Robot Scan Range 10 Terrain Scan Density 10 Evasion (%) 40 Targeting Accuracy 5 Item Schematics ----------------- None Robot Schematics ------------------ None Fabricated ------------ Nothing Alien Tech Used ----------------- None Achievements -------------- None Challenges ------------ None Game ------ Seed HoverNuclearNukerbomber Manual? 0 Play Time 00:12:51 Cumulative 3.5 hours Start 2019.12.30 @ 21:59:02 End 2019.12.30 @ 22:09:27 Sessions 1 Manual Loads 0 Difficulty Rogue Special Mode None Game No. 6 Rogue 6 Adventurer 0 Explorer 0 Win Type - Total 0 Types 0/0/0/0/0/0/0 Lore% 11 Gallery% 6 Achievement% 6 Wizard Run 0 Options --------- ASCII 0 Keyboard 1 Movement Numpad Keybinds 0 Fullscreen 2 Font 18/X11 Map View 76x50 Tactical HUD 0 Map Filters NONE Filters NONE Steam 1 RUN: a519da57-88ac-40b9-9318-a7ec22761bc5